fUSD/lending_fUSD_20251024
["ID","MTS","AMOUNT","RATE_DAILY","PERIOD"]
[392267619,1761292270130,-502.00416584,0.00041095,30]
[392267620,1761292270139,-712.6,0.00041095,30]
[392267621,1761292270147,-774.69,0.00041095,30]
[392267622,1761292270156,-474.128311,0.00041095,30]
[392267623,1761292271469,-1363.327661,0.0003998,120]
[392267624,1761292271479,-1063.31666984,0.0003999,120]
[392267625,1761292271516,-300.01099116,0.0003999,120]
[392267626,1761292271526,-193.37116883,0.0004,120]
[392267627,1761292271537,-1169.95649217,0.0004,120]
[392267628,1761292271547,-1363.327661,0.0004023,120]
[392267629,1761292271556,-8528.0840176,0.00040876,15]
[392267630,1761292271567,-5125.7215888,0.00040876,15]
[392267631,1761292271579,-1050.37319549,0.00040876,15]
[392267632,1761292271588,-97.67611203,0.00041095,30]
[392267633,1761292271597,-500.0,0.00041095,30]
[392267634,1761292271607,-500.0,0.00041095,30]
[392267635,1761292271619,-500.0,0.00041095,30]
[392267636,1761292271629,-400.50454807,0.00041095,30]
[392267637,1761292382062,9476.0,0.00024,3]
[392267734,1761292892093,250.0,0.00017,2]
[392267754,1761292948051,150.0,0.00024,3]
[392267927,1761293370143,-300.0,0.00019,2]
[392267928,1761293370165,-350.0,0.00021,2]
[392267929,1761293370184,-400.0,0.00023,2]
[392267930,1761293370206,-150.0,0.00024,2]
[392267931,1761293370229,-193.02,0.00031196,2]
[392267932,1761293370249,-2035.12682,0.00035797,2]
[392267937,1761293431873,-627.62514,0.00035797,2]
[392267938,1761293431900,-1000.0,0.00035797,2]
[392267939,1761293431912,-423.15291924,0.00035797,2]
[392267940,1761293431924,-914.09512076,0.00035797,2]
[392267941,1761293431933,-300.0,0.00035843,7]
[392267942,1761293431943,-300.0,0.00036039,120]
[392267943,1761293431953,-169.39,0.00036281,2]
[392267944,1761293431963,-150.0,0.00036297,3]
[392267945,1761293431973,-300.0,0.0003631,120]
[392267946,1761293431984,-330.52908528,0.0003631,120]
[392267947,1761293431993,-182.58026006,0.00036575,2]
[392267948,1761293432003,-400.0,0.000366,13]
[392267950,1761293432014,-407.81264626,0.00036674,2]
[392267952,1761293432023,-600.0,0.00036696,2]
[392267954,1761293432032,-500.0,0.00036697,15]
[392267956,1761293432042,-500.0,0.00036697,15]
[392267958,1761293432051,-229.29613373,0.00036697,15]
[392267960,1761293432060,-500.0,0.00036697,15]
[392267962,1761293432070,-500.0,0.00036697,15]
[392267964,1761293432079,-500.0,0.00036697,15]
[392267965,1761293432088,-610.25844781,0.00036697,15]
[392267966,1761293432098,-500.0,0.00036697,15]
[392267968,1761293432108,-500.0,0.00036697,15]
[392267970,1761293432122,-500.0,0.00036697,15]
[392267971,1761293432134,-500.0,0.00036697,15]
[392267972,1761293432144,-500.0,0.00036697,15]
[392267973,1761293432154,-772.37242644,0.000367,2]
[392267974,1761293432164,-900.0,0.000367,13]
[392267975,1761293432173,-618.36214426,0.000367,9]
[392267976,1761293432183,-1514.17186254,0.000367,2]
[392267977,1761293432193,-6053.0526961,0.000367,2]
[392267978,1761293432202,-177.24027425,0.00036765,2]
[392267979,1761293432212,-283.25,0.00036767,46]
[392267980,1761293432222,-500.0,0.00036773,2]
[392267981,1761293432231,-500.0,0.00036773,5]
[392267982,1761293432246,-500.0,0.00036773,15]
[392267983,1761293432256,-168.68576221,0.00036773,15]
[392267984,1761293432265,-350.35443905,0.00036773,15]
[392267985,1761293432275,-242.47050203,0.00036773,15]
[392267986,1761293432284,-305.96260042,0.00036774,10]
[392267987,1761293432295,-21649.96694204,0.00036774,5]
[392267988,1761293432315,-885.50628141,0.00036774,5]
[392267989,1761293432327,-627.03415411,0.00036774,5]
[392267990,1761293432339,-326.03172292,0.00036774,5]
[392267991,1761293432366,-2647.57839088,0.00036774,5]
[392267992,1761293432389,-624.24683828,0.00036774,5]
[392267993,1761293432400,-1044.15393787,0.00036774,5]
[392267994,1761293432411,-872.31859999,0.00036774,5]
[392267995,1761293432422,-1203.444,0.00036774,5]
[392267999,1761293437557,-567.8064942,0.00036696,15]
[392268000,1761293437567,-12605.73434905,0.00036774,5]
[392268001,1761293437576,-79.47850038,0.00036774,30]
[392268002,1761293437587,-420.52149962,0.00036774,30]
[392268003,1761293437596,-78.46848707,0.00036774,30]
[392268004,1761293437608,-402.52083682,0.00036774,30]
[392268005,1761293437619,-19.01067611,0.00036774,30]
[392268006,1761293437628,-500.0,0.00036774,30]
[392268007,1761293437637,-156.0,0.00036774,30]
[392268008,1761293437647,-500.0,0.00036774,2]
[392268009,1761293437656,-500.0,0.00036774,2]
[392268010,1761293437665,-664.98932389,0.00036775,5]
[392268011,1761293437676,-311.01067611,0.00036775,5]
[392268012,1761293437686,-44753.61139594,0.00036775,2]
[392268013,1761293437697,-564.1761,0.00036775,2]
[392268014,1761293437708,-2156.88,0.00036775,2]
[392268015,1761293437719,-2182.05857,0.00036775,2]
[392268016,1761293437730,-2506.09710681,0.00036775,2]
[392268017,1761293437750,-2343.46774871,0.00036775,2]
[392268018,1761293437761,-1251.33867206,0.00036775,2]
[392268019,1761293437772,-109051.75840454,0.00036775,2]
[392268020,1761293437783,-2628.34965406,0.00036775,2]
[392268021,1761293437795,-9473.8953164,0.00036775,2]
[392268022,1761293437806,-3437.9,0.00036775,2]
[392268025,1761293439662,-686.64424219,0.00036775,2]
[392268026,1761293439673,-9.56207971,0.00036775,30]
[392268027,1761293439684,-4979.76509798,0.00036775,30]
[392268028,1761293439696,-1554.41884933,0.00036775,30]
[392268029,1761293439708,-5814.0940194,0.00036775,30]
[392268030,1761293439895,-1104.84824045,0.00036775,30]
[392268031,1761293439988,-500.0,0.00036775,30]
[392268032,1761293440002,-2606.64961945,0.00036775,30]
[392268033,1761293440013,-301.80824379,0.00036775,30]
[392268068,1761293442600,-990.41917286,0.00036775,30]
[392268100,1761293445630,-194.920281,0.0003659,2]
[392268102,1761293445640,-10927.2660938,0.00036775,30]
[392268104,1761293445652,-945.89473246,0.00036775,30]
[392268106,1761293472301,364.57,0.00013699,2]
[392268243,1761293622759,-328.43916628,0.00018508,2]
[392268245,1761293625195,-154.25091183,0.00018508,2]
[392268246,1761293628344,-220.59200214,0.00018508,2]
[392268588,1761294308526,5404.8763177,0.00015,2]
[392268589,1761294308551,6210.1763177,0.00015,2]
[392268590,1761294308577,6210.1763177,0.00015,2]
[392268591,1761294308601,6210.1763177,0.00015,2]
[392268592,1761294308627,6210.1763177,0.00015,2]
[392268593,1761294308656,6210.1763177,0.00015,2]
[392268594,1761294308682,6210.1763177,0.00015,2]
[392268595,1761294308707,6210.1763177,0.00015,2]
[392268596,1761294308733,6210.1763177,0.00015,2]
[392268597,1761294308757,6210.1763177,0.00015,2]
[392268598,1761294308788,200000.0,0.00015,2]
[392268599,1761294308820,1760160.04774584,0.00015,2]
[392268600,1761294325764,651.38288335,0.000108,2]
[392268601,1761294326659,-231.03108591,0.000175,2]
[392268602,1761294329533,-317.66,0.000175,2]
[392268604,1761294331649,-168.38910358,0.000175,2]
[392268606,1761294334507,-162.20914202,0.000175,2]
[392268614,1761294336214,5360.14035359,9e-05,2]
[392268615,1761294336560,-192.55379713,0.000175,2]
[392268616,1761294338670,-188.02723125,0.000175,2]
[392268617,1761294341291,-183.85553285,0.000175,2]
[392268621,1761294358874,-161.15891409,0.000175,2]
[392268622,1761294361453,-310.73515954,0.000175,2]
[392268623,1761294365246,-238.81547958,0.000175,2]
[392268624,1761294366863,8963.82003915,0.00011,2]
[392268625,1761294367560,-293.9407874,0.000175,2]
[392268626,1761294371183,-351.4338176,0.000175,2]
[392268627,1761294375456,-275.92234993,0.000175,2]
[392268628,1761294378139,-286.26434175,0.000175,2]
[392268629,1761294380430,-230.44157474,0.000175,2]
[392268630,1761294382036,-243.74353934,0.000175,2]
[392268631,1761294384219,-180.74054152,0.000175,2]
[392268632,1761294385894,-151.02551007,0.000175,2]
[392268633,1761294402109,-223.889928,0.00017499,2]
[392268634,1761294404764,-276.110072,0.00017499,2]
[392268635,1761294404792,-142.32734908,0.00017499,2]
[392268636,1761294407321,-190.97865125,0.00017499,2]
[392268637,1761294410096,-166.69399967,0.00017499,2]
[392268638,1761294410120,-23.08600033,0.00017499,2]
[392268639,1761294412058,-218.3700654,0.00017499,2]
[392268640,1761294412082,-213.48820408,0.00017499,2]
[392268641,1761294413622,-278.77600888,0.00017499,2]
[392268642,1761294416462,-7.73578704,0.00017499,2]
[392268643,1761294416488,-500.0,0.00017499,2]
[392268644,1761294416511,-104.48532744,0.000175,2]
[392268645,1761294423118,-294.53651146,0.000175,2]
[392268646,1761294425822,-176.25,0.000175,2]
[392268647,1761294428227,-195.0,0.000175,2]
[392268648,1761294429232,-240.08845454,0.000175,2]
[392268649,1761294431653,-269.73849016,0.000175,2]
[392268650,1761294434930,-205.30881707,0.000175,2]
[392268651,1761294436912,-230.42002038,0.000175,2]
[392268652,1761294438099,3012.5172072,0.0001305,2]
[392268653,1761294438935,-376.38543886,0.000175,2]
[392268654,1761294440532,-277.25357077,0.000175,2]
[392268655,1761294442657,-291.11182637,0.000175,2]
[392268656,1761294444915,-300.0,0.000175,2]
[392268657,1761294447180,-238.13179334,0.000175,2]
[392268658,1761294449880,-165.3105718,0.000175,2]
[392268659,1761294451660,-270.32222325,0.000175,2]
[392268660,1761294454952,-306.06719304,0.000175,2]
[392268661,1761294458227,-268.6918043,0.000175,2]
[392268662,1761294460371,-191.14,0.000175,2]
[392268664,1761294468869,2193.02205611,0.00013,2]
[392268665,1761294470165,-248.67521497,0.000175,2]
[392268666,1761294474211,-336.34267382,0.000175,2]
[392268667,1761294475942,1088678.82294925,0.00015,2]
[392268668,1761294476262,-205.12334224,0.000175,2]
[392268669,1761294490079,4887.8561622,0.0001439,2]
[392268671,1761294491193,-208.49587844,0.000175,2]
[392268674,1761294507671,-300.0,0.000175,2]
[392268676,1761294509868,-175.31230118,0.000175,2]
[392268682,1761294513711,-386.64677937,0.000175,2]
[392268683,1761294516315,-301.59630084,0.000175,2]
[392268685,1761294518364,-156.68905104,0.000175,2]
[392268688,1761294522647,-186.59130588,0.00015807,2]
[392268692,1761294528307,-188.40903968,0.00015807,2]
[392268693,1761294530895,-155.70831099,0.00015807,2]
[392268695,1761294533399,-184.75224072,0.00015807,2]
[392268697,1761294536143,-151.73054671,0.00015807,2]
[392268702,1761294552349,-269.67449039,0.00015807,2]
[392268706,1761294556124,-292.5236835,0.00015807,2]
[392268708,1761294558181,-192.13244164,0.00015807,2]
[392268709,1761294560286,-189.53066395,0.00015807,2]
[392268710,1761294561862,-226.74430737,0.00015807,2]
[392268714,1761294563599,-174.58428065,0.00015807,2]
[392268715,1761294563621,-158.155641,0.000175,2]
[392268716,1761294566076,-204.53972,0.000175,2]
[392268720,1761294583378,-151.60749575,0.000175,2]
[392268723,1761294589690,-211.43768727,0.000175,2]
[392268724,1761294591795,-262.76144034,0.000175,2]
[392268725,1761294593281,-211.05907973,0.000175,2]
[392268726,1761294596391,-235.70987768,0.000175,2]
[392268729,1761294599104,-179.13201591,0.000175,2]
[392268730,1761294601247,-326.54940285,0.000175,2]
[392268732,1761294604981,-160.86546302,0.000175,2]
[392268734,1761294607188,-455.78430547,0.000175,2]
[392268738,1761294627247,-419.79065844,0.000175,2]
[392268760,1761294630843,-476.91591409,0.000175,2]
[392268805,1761294631698,-2378.42701158,0.000175,2]
[392268806,1761294631709,-66.36791975,0.00018508,2]
[392268807,1761294631718,-301.80824379,0.00019471,2]
[392268808,1761294631728,-300.0,0.00019481,2]
[392268809,1761294631738,-249.05067397,0.00019482,2]
[392268810,1761294631748,-151.73054671,0.00019482,2]
[392268811,1761294631758,-291.6049032,0.00019482,2]
[392268812,1761294631769,-194.79362066,0.00019482,2]
[392268813,1761294631779,-353.46503419,0.00019482,2]
[392268814,1761294631789,-206.46925316,0.00019482,2]
[392268815,1761294631799,-310.46933605,0.00019482,2]
[392268816,1761294631809,-160.86546302,0.00019482,2]
[392268817,1761294631819,-769.65,0.00019483,2]
[392268818,1761294631829,-7250.59428908,0.0002,2]
[392268819,1761294631839,-1200.0,0.00020186,2]
[392268820,1761294631850,-364.57,0.00020187,2]
[392268821,1761294631859,-769.65,0.00020457,2]
[392268822,1761294631870,-1808.88527296,0.000207,2]
[392268823,1761294631880,-420.0,0.00021223,2]
[392268824,1761294631891,-769.65,0.00021431,2]
[392268825,1761294631901,-6784.33622274,0.000215,2]
[392268826,1761294631915,-232.0,0.00021977,2]
[392268827,1761294631924,-488.82511897,0.000221,2]
[392268828,1761294631936,-237.52207983,0.0002211,2]
[392268829,1761294631949,-769.65,0.00022405,2]
[392268830,1761294631959,-359.41951937,0.00022499,2]
[392268831,1761294631969,-500.0,0.00022499,2]
[392268832,1761294631979,-459.68572407,0.00022499,2]
[392268833,1761294631989,-280.16739149,0.00022499,2]
[392268834,1761294631998,-1600.0,0.00022499,2]
[392268835,1761294632009,-698.69684365,0.000225,2]
[392268836,1761294632046,-25510.08061615,0.000225,2]
[392268837,1761294632087,-347.39111207,0.000225,2]
[392268838,1761294632099,-664.888,0.000225,2]
[392268848,1761294637610,-7863.21764602,0.000225,2]
[392268849,1761294637620,-457.0,0.00023122,2]
[392268850,1761294637630,-769.65,0.00023379,2]
[392268851,1761294637639,-1008.40523088,0.00024,2]
[392268852,1761294637649,-771.56007491,0.00024,2]
[392268853,1761294637659,-769.65,0.00024353,2]
[392268854,1761294637668,-769.65,0.00025327,2]
[392268855,1761294637678,-197.45,0.00026164,2]
[392268856,1761294637689,-602.41704819,0.00026301,2]
[392268862,1761294638453,-167.23295181,0.00026301,2]
[392268863,1761294638463,-289.09704839,0.00026603,2]
[392268864,1761294638476,-210.90295161,0.00026603,2]
[392268865,1761294638487,-364.57,0.00026676,2]
[392268866,1761294638497,-769.65,0.00027276,2]
[392268867,1761294638506,-166.66,0.00028089,30]
[392268868,1761294638516,-769.65,0.0002825,2]
[392268869,1761294638525,-166.66,0.0002868,30]
[392268870,1761294638535,-769.65,0.00029224,2]
[392268871,1761294638545,-166.66,0.00029272,30]
[392268872,1761294638554,-166.66,0.00029863,30]
[392268873,1761294638563,-3162.99923683,0.0003013,2]
[392268874,1761294638573,-769.65,0.00030198,2]
[392268875,1761294638582,-166.66,0.00030454,30]
[392268876,1761294638592,-166.66,0.00031046,30]
[392268877,1761294638603,-769.65,0.00031172,2]
[392268878,1761294638612,-166.82,0.0003122,2]
[392268879,1761294638623,-505.69,0.00031781,2]
[392268880,1761294638633,-496.48,0.00031784,30]
[392268881,1761294638642,-769.65,0.00032146,2]
[392268882,1761294638653,-158.0,0.00033,14]
[392268883,1761294638662,-173.0,0.00033,14]
[392268884,1761294638671,-150.0,0.0003309,7]
[392268885,1761294638681,-150.0,0.0003309,7]
[392268886,1761294638691,-150.0,0.0003309,7]
[392268887,1761294638701,-150.0,0.0003309,7]
[392268888,1761294638711,-150.0,0.0003309,7]
[392268889,1761294638721,-150.0,0.0003309,7]
[392268890,1761294638730,-22.08923277,0.0003309,7]
[392268891,1761294638742,-127.91076723,0.0003309,7]
[392268892,1761294638752,-769.65,0.0003312,2]
[392268893,1761294638761,-364.57,0.00033165,2]
[392268894,1761294638771,-150.0,0.00033397,7]
[392268895,1761294638781,-150.0,0.00033703,7]
[392268896,1761294638791,-45.26206961,0.0003401,7]
[392268897,1761294638810,-104.73793039,0.0003401,7]
[392268898,1761294638822,-769.65,0.00034095,2]
[392268899,1761294638832,-157.42,0.00034277,2]
[392268900,1761294638841,-150.0,0.00034316,7]
[392268901,1761294638851,-158.0,0.00034521,30]
[392268902,1761294638861,-173.0,0.00034521,30]
[392268903,1761294638871,-226.6,0.00034521,39]
[392268904,1761294638882,-150.0,0.00034622,7]
[392268905,1761294638892,-150.0,0.00034929,7]
[392268906,1761294638902,-150.0,0.00034929,7]
[392268907,1761294638913,-150.0,0.00034929,7]
[392268908,1761294638924,-150.07,0.00035068,2]
[392268909,1761294638934,-769.65,0.00035069,2]
[392268910,1761294638950,-150.0,0.00035235,7]
[392268911,1761294638960,-1000.0,0.00035405,2]
[392268912,1761294638969,-150.07,0.00035427,2]
[392268913,1761294638979,-228.38846154,0.00035541,4]
[392268914,1761294638988,-150.0,0.00035542,7]
[392268915,1761294638999,-1000.0,0.00035679,2]
[392268916,1761294639010,-150.07,0.00035786,2]
[392268917,1761294639019,-150.0,0.00035848,7]
[392268918,1761294639029,-5491.00248433,0.00035898,2]
[392268919,1761294639039,-10638.36112375,0.000359,2]
[392268920,1761294639075,-787.61,0.000359,2]
[392268924,1761294639727,-327.52014216,0.000359,2]
[392268956,1761294640733,-1.6e-07,0.000359,2]
[392268957,1761294640828,-2893.10640307,0.000359,2]
[392268958,1761294640837,-1000.0,0.00035953,2]
[392268959,1761294640846,-500.0,0.00035973,5]
[392268960,1761294640855,-500.0,0.00035973,2]
[392268961,1761294640864,-171435.36933418,0.00036,3]
[392268962,1761294640873,-210.60694072,0.00036,2]
[392268963,1761294640882,-769.65,0.00036043,2]
[392268964,1761294640891,-693.28984318,0.00036102,2]
[392268965,1761294640900,-150.07,0.00036145,2]
[392268966,1761294640910,-150.0,0.00036154,7]
[392268967,1761294640918,-1582.93325937,0.00036196,2]
[392268968,1761294640928,-1000.0,0.00036227,2]
[392268969,1761294640939,-173.0,0.00036247,30]
[392268970,1761294640950,-161.0,0.00036247,30]
[392268971,1761294640959,-14646.59766911,0.00036294,2]
[392268972,1761294640968,-693.28984318,0.00036296,2]
[392268973,1761294640977,-8665.43442683,0.0003641,2]
[392268974,1761294640986,-4137.06488,0.0003641,2]
[392268975,1761294640995,-693.28984319,0.00036458,2]
[392268976,1761294641004,-150.0,0.00036461,7]
[392268977,1761294641013,-700.0,0.000365,13]
[392268978,1761294641022,-1000.0,0.00036501,2]
[392268979,1761294641031,-150.07,0.00036504,2]
[392268980,1761294641041,-503.0663356,0.00036521,2]
[392268981,1761294641050,-1500.0,0.000366,13]
[392268982,1761294641059,-500.0,0.00036671,2]
[392268983,1761294641068,-790.76224616,0.00036672,2]
[392268984,1761294641077,-12799.8368274,0.00036672,2]
[392268985,1761294641086,-668.63035932,0.00036672,9]
[392268986,1761294641095,-2694.45845538,0.00036672,11]
[392268987,1761294641104,-14646.59766911,0.00036688,2]
[392268988,1761294641113,-2300.0,0.000367,13]
[392268989,1761294641121,-153.49,0.00036762,2]
[392268990,1761294641130,-177.24027425,0.00036762,2]
[392268991,1761294641139,-177.24027425,0.00036762,2]
[392268992,1761294641148,-18286.6779026,0.00036765,4]
[392268993,1761294641156,-496.48,0.00036765,120]
[392268994,1761294641165,-150.0,0.00036767,7]
[392268995,1761294641174,-150.0,0.00036767,7]
[392268996,1761294641183,-150.0,0.00036767,7]
[392268997,1761294641192,-150.0,0.00036767,7]
[392268998,1761294641201,-151.0,0.00036769,14]
[392268999,1761294641211,-666.0,0.00036771,10]
[392269000,1761294641220,-1003.1076,0.00036771,2]
[392269001,1761294641229,-500.0,0.00036771,30]
[392269002,1761294641238,-265.92626081,0.00036771,30]
[392269003,1761294641247,-500.0,0.00036771,30]
[392269004,1761294641256,-500.0,0.00036771,30]
[392269005,1761294641266,-500.0,0.00036771,30]
[392269006,1761294641275,-500.0,0.00036771,30]
[392269007,1761294641284,-500.0,0.00036771,30]
[392269008,1761294641293,-500.0,0.00036771,30]
[392269009,1761294641302,-500.0,0.00036771,30]
[392269010,1761294641311,-500.0,0.00036771,2]
[392269011,1761294641321,-500.0,0.00036771,2]
[392269012,1761294641330,-500.0,0.00036771,2]
[392269013,1761294641339,-500.0,0.00036771,2]
[392269014,1761294641349,-500.0,0.00036771,2]
[392269015,1761294641358,-500.0,0.00036771,2]
[392269016,1761294641367,-2136399.11420469,0.00036772,30]
[392269029,1761294643046,-5472.8568403,0.00036772,30]
[392269055,1761294645734,-482.85713621,0.000225,2]
[392269058,1761294645746,-17.14286379,0.000225,2]
[392269059,1761294645759,-982.37671628,0.00023048,2]
[392269060,1761294645768,-54534.6035394,0.00036772,30]
[392269082,1761294702170,-154.25091199,0.00017,2]
[392269086,1761294739457,159.5105,0.00027397,120]
[392269312,1761295098204,-95.74908801,0.00017,2]
[392269313,1761295098230,-86.19173719,0.0001785,2]
[392269314,1761295100256,-205.94309279,0.0001785,2]
[392269315,1761295102398,-209.9398722,0.0001785,2]
[392269316,1761295106292,-264.76492536,0.0001785,2]
[392269317,1761295108966,-229.31683829,0.0001785,2]
[392269318,1761295111747,-246.77696615,0.0001785,2]
[392269322,1761295128429,-191.47291386,0.0001785,2]
[392269323,1761295131422,-224.74328951,0.0001785,2]
[392269324,1761295132916,-472.80596367,0.0001785,2]
[392269326,1761295138024,-156.72768663,0.0001785,2]
[392269327,1761295139593,-186.0,0.0001785,2]
[392269328,1761295143684,-323.8185641,0.0001785,2]
[392269368,1761295387327,-148.90456408,0.0001785,2]
[392269369,1761295387349,-1200.0,0.00018699,2]
[392269370,1761295387372,-1200.0,0.00018699,2]
[392269371,1761295387393,-493.25047656,0.00018699,2]
[392269372,1761295387418,-558.99072846,0.00018699,2]
[392269373,1761295387440,-166.19674465,0.000187,2]
[392269374,1761295387462,-195.0,0.000187,2]
[392269375,1761295387485,-5000.0,0.000187,2]
[392269376,1761295387506,-150.31025601,0.000187,2]
[392269377,1761295387528,-300.0,0.00019,2]
[392269378,1761295387552,-502.0,0.00020388,2]
[392269379,1761295387574,-781.0,0.00020488,2]
[392269380,1761295387596,-191.28,0.00027444,2]
[392269381,1761295387620,-150.0,0.0003,2]
[392269382,1761295387643,-150.0,0.00031,2]
[392269383,1761295387669,-150.0,0.00032,2]
[392269384,1761295387690,-150.0,0.00033,2]
[392269385,1761295387712,-1878.0,0.00033732,2]
[392269386,1761295387735,-150.0,0.00034,2]
[392269387,1761295387762,-8863.0,0.00035,2]
[392269388,1761295387786,-150.0,0.00035,2]
[392269389,1761295387809,-1332.4,0.0003516,2]
[392269390,1761295387831,-306.84,0.00035165,2]
[392269391,1761295387855,-164.31,0.000352,2]
[392269392,1761295387884,-1000.0,0.00035253,2]
[392269393,1761295387907,-150.0,0.00035266,2]
[392269394,1761295387929,-150.0,0.00035266,120]
[392269395,1761295387952,-699.24,0.00035283,2]
[392269396,1761295387975,-1000.0,0.00035393,2]
[392269397,1761295387997,-1000.0,0.00035667,2]
[392269398,1761295388021,-705.75645966,0.00035788,2]
[392269399,1761295388045,-181.28,0.00035941,43]
[392269400,1761295388068,-1000.0,0.00035941,2]
[392269401,1761295388092,-500.0,0.00035999,30]
[392269402,1761295388114,-500.0,0.00035999,30]
[392269403,1761295388136,-500.0,0.00035999,7]
[392269404,1761295388161,-305.0,0.00035999,30]
[392269405,1761295388190,-511.67301225,0.00035999,2]
[392269406,1761295388214,-1600.0,0.00035999,2]
[392269407,1761295388236,-305.0,0.00035999,2]
[392269408,1761295388259,-159.0,0.00036,30]
[392269409,1761295388283,-173.0,0.00036,30]
[392269410,1761295388305,-705.75645966,0.00036022,2]
[392269411,1761295388331,-1213.34405406,0.00036167,2]
[392269412,1761295388355,-1000.0,0.00036215,2]
[392269413,1761295388381,-705.75645966,0.0003631,2]
[392269414,1761295388410,-200.0,0.00036388,2]
[392269415,1761295388436,-500.0,0.00036388,2]
[392269416,1761295388463,-500.0,0.00036388,2]
[392269417,1761295388486,-500.0,0.00036388,2]
[392269418,1761295388508,-500.0,0.00036388,2]
[392269419,1761295388530,-200.0,0.00036388,2]
[392269420,1761295388552,-200.0,0.00036388,2]
[392269421,1761295388575,-4137.06488,0.000364,2]
[392269422,1761295388599,-500.0,0.00036409,15]
[392269423,1761295388621,-500.0,0.00036409,15]
[392269424,1761295388645,-286.17254625,0.00036409,15]
[392269425,1761295388666,-56913.11379547,0.0003641,2]
[392269426,1761295388689,-8665.43442683,0.0003641,2]
[392269427,1761295388711,-489.75908399,0.0003641,2]
[392269428,1761295388732,-312.77003995,0.00036473,5]
[392269429,1761295388754,-306.84,0.00036483,2]
[392269430,1761295388777,-705.75645966,0.00036484,2]
[392269431,1761295388802,-1000.0,0.00036489,2]
[392269432,1761295388823,-1498.64289469,0.000365,2]
[392269433,1761295388848,-13314.76439485,0.00036663,2]
[392269434,1761295388871,-668.63035932,0.00036663,9]
[392269435,1761295388894,-190.45917657,0.00036663,15]
[392269436,1761295388917,-1604.23703829,0.00036663,2]
[392269437,1761295388941,-13202.68532733,0.00036663,2]
[392269438,1761295388964,-2694.45845538,0.00036667,11]
[392269439,1761295388988,-500.0,0.00036724,30]
[392269440,1761295389013,-500.0,0.00036724,30]
[392269441,1761295389037,-500.0,0.00036724,30]
[392269442,1761295389060,-500.0,0.00036724,30]
[392269443,1761295389084,-500.0,0.00036724,30]
[392269444,1761295389108,-500.0,0.00036724,30]
[392269445,1761295389132,-500.0,0.00036724,30]
[392269446,1761295389154,-500.0,0.00036724,2]
[392269447,1761295389180,-500.0,0.00036724,2]
[392269448,1761295389203,-500.0,0.00036724,2]
[392269449,1761295389225,-500.0,0.00036724,2]
[392269450,1761295389247,-500.0,0.00036724,2]
[392269451,1761295389270,-19110.3127737,0.00036751,3]
[392269452,1761295389297,-234.53704024,0.00036753,2]
[392269453,1761295389321,-153.49,0.00036753,2]
[392269454,1761295389348,-1158.82100279,0.00036758,30]
[392269455,1761295389373,-500.0,0.00036758,2]
[392269456,1761295389395,-500.0,0.00036758,30]
[392269457,1761295389417,-500.0,0.00036758,30]
[392269458,1761295389440,-153435.6765115,0.00036759,2]
[392269459,1761295389462,-151.0,0.0003676,14]
[392269460,1761295389485,-151.0,0.0003676,14]
[392269461,1761295389507,-19110.3127737,0.00036761,3]
[392269462,1761295389529,-500.0,0.00036763,2]
[392269463,1761295389551,-500.0,0.00036763,2]
[392269464,1761295389573,-500.0,0.00036763,2]
[392269465,1761295389596,-500.0,0.00036763,2]
[392269466,1761295389620,-500.0,0.00036763,2]
[392269467,1761295389643,-435.16,0.00036763,2]